fUST/lending_fUST_20250623
["ID","MTS","AMOUNT","RATE_DAILY","PERIOD"]
[367009947,1750617042157,-1000.0,0.00023121,2]
[367009948,1750617042166,-500.0,0.00023125,8]
[367009949,1750617042176,-751.0,0.00023132,2]
[367009950,1750617042190,-151.0,0.00023132,2]
[367009951,1750617042200,-751.0,0.00023159,2]
[367009952,1750617042209,-245.74169776,0.00023159,2]
[367009953,1750617042218,-751.0,0.00023187,2]
[367009954,1750617042229,-751.0,0.00023214,2]
[367009955,1750617042238,-751.0,0.00023241,2]
[367009956,1750617042247,-516.97505602,0.00023254,2]
[367009957,1750617042258,-751.0,0.00023269,2]
[367009958,1750617042268,-654.0,0.0002327,2]
[367009959,1750617042277,-2161.0,0.0002327,2]
[367009960,1750617042287,-406.0,0.0002327,2]
[367009961,1750617042296,-500.0,0.00023273,2]
[367009962,1750617042306,-517.71271256,0.00023279,8]
[367009963,1750617042315,-151.0,0.00023288,2]
[367009964,1750617042324,-751.0,0.00023296,2]
[367009965,1750617042334,-151.0,0.000233,6]
[367009966,1750617042344,-168.0,0.00023301,2]
[367009967,1750617042353,-151.0,0.00023315,2]
[367009968,1750617042363,-751.0,0.00023324,2]
[367009969,1750617042372,-151.0,0.00023343,2]
[367009970,1750617042381,-619.0,0.00023348,2]
[367009971,1750617042390,-152.04280326,0.00023348,2]
[367009972,1750617042400,-500.0,0.00023348,2]
[367009973,1750617042411,-500.0,0.00023348,2]
[367009974,1750617042420,-151.0,0.00023348,2]
[367009975,1750617042429,-151.32566504,0.00023348,2]
[367009976,1750617042439,-151.99710973,0.00023348,2]
[367009977,1750617042449,-751.0,0.00023351,2]
[367009978,1750617042458,-156.76,0.00023359,3]
[367009979,1750617042469,-600.0,0.00023364,2]
[367009980,1750617042479,-313.52,0.00023365,3]
[367009981,1750617042489,-500.0,0.00023366,2]
[367009982,1750617042498,-594.18146038,0.00023369,2]
[367009983,1750617042508,-13387.00183502,0.00023369,2]
[367009984,1750617042518,-207.4,0.00023369,2]
[367009985,1750617042527,-5000.0,0.00023369,2]
[367009986,1750617042536,-217.30088505,0.0002337,2]
[367009987,1750617042546,-619.0,0.00023375,2]
[367009988,1750617042556,-500.0,0.00023375,2]
[367009990,1750617042566,-507.20470627,0.00023375,2]
[367009992,1750617042575,-355.5,0.00023377,5]
[367009993,1750617042585,-751.0,0.00023378,2]
[367009994,1750617042595,-600.0,0.000234,2]
[367009995,1750617042605,-619.0,0.00023403,2]
[367009996,1750617042614,-500.0,0.00023403,2]
[367009997,1750617042624,-751.0,0.00023406,2]
[367009998,1750617042634,-600.0,0.00023414,2]
[367010000,1750617042644,-600.0,0.00023419,2]
[367010002,1750617042653,-619.0,0.0002343,2]
[367010004,1750617042663,-500.0,0.0002343,2]
[367010006,1750617042673,-751.0,0.00023433,2]
[367010009,1750617042683,-517.71271256,0.00023452,9]
[367010012,1750617042693,-619.0,0.00023458,2]
[367010014,1750617042703,-500.0,0.00023458,2]
[367010016,1750617042713,-600.0,0.00023458,2]
[367010017,1750617042723,-751.0,0.00023461,2]
[367010018,1750617042733,-1273.729537,0.00023461,4]
[367010019,1750617042743,-619.0,0.00023485,2]
[367010021,1750617042752,-500.0,0.00023485,2]
[367010022,1750617042762,-751.0,0.00023488,2]
[367010023,1750617042771,-627.04,0.00023502,3]
[367010024,1750617042781,-619.0,0.00023512,2]
[367010025,1750617042790,-499.03939283,0.00023512,2]
[367010026,1750617042800,-751.0,0.00023515,2]
[367010027,1750617042810,-1000.0,0.00023521,2]
[367010028,1750617042819,-1000.0,0.00023521,2]
[367010029,1750617042829,-1000.0,0.00023521,2]
[367010030,1750617042839,-1000.0,0.00023521,2]
[367010031,1750617042849,-500.0,0.00023521,2]
[367010032,1750617042859,-500.0,0.00023521,2]
[367010033,1750617042868,-1000.0,0.00023521,2]
[367010034,1750617042878,-1000.0,0.00023521,2]
[367010035,1750617042887,-500.0,0.00023521,2]
[367010036,1750617042897,-501.14966039,0.00023521,2]
[367010037,1750617042906,-1000.0,0.00023521,2]
[367010038,1750617042915,-500.0,0.00023521,2]
[367010039,1750617042925,-1051.71866101,0.00023521,2]
[367010040,1750617042934,-600.0,0.00023525,2]
[367010041,1750617042944,-619.0,0.0002354,2]
[367010042,1750617042953,-751.0,0.00023543,2]
[367010043,1750617042963,-600.0,0.00023565,2]
[367010044,1750617042972,-619.0,0.00023567,2]
[367010045,1750617042982,-751.0,0.0002357,2]
[367010046,1750617042991,-499.3,0.0002358,2]
[367010047,1750617043001,-619.0,0.00023595,2]
[367010048,1750617043011,-751.0,0.00023598,2]
[367010049,1750617043020,-619.0,0.00023622,2]
[367010050,1750617043029,-517.71271256,0.00023624,9]
[367010051,1750617043039,-751.0,0.00023625,2]
[367010052,1750617043048,-619.0,0.00023649,2]
[367010053,1750617043057,-751.0,0.00023652,2]
[367010054,1750617043067,-600.0,0.0002366,2]
[367010055,1750617043076,-355.5,0.00023661,6]
[367010056,1750617043085,-157.98674882,0.00023668,2]
[367010057,1750617043095,-500.0,0.00023673,9]
[367010058,1750617043105,-424.455268,0.00023676,2]
[367010059,1750617043114,-619.0,0.00023677,2]
[367010060,1750617043123,-751.0,0.0002368,2]
[367010061,1750617043132,-1782.72,0.000237,7]
[367010062,1750617043142,-151.0,0.000237,10]
[367010063,1750617043153,-619.0,0.00023704,2]
[367010064,1750617043161,-752.0,0.00023707,2]
[367010065,1750617043171,-619.0,0.00023732,2]
[367010066,1750617043183,-516.97505602,0.00023738,2]
[367010067,1750617043192,-619.0,0.00023759,2]
[367010068,1750617043201,-365.8215413,0.00023761,2]
[367010069,1750617043211,-365.8215413,0.00023761,2]
[367010070,1750617043220,-365.8215413,0.00023761,2]
[367010071,1750617043230,-574.6497757,0.00023781,2]
[367010072,1750617043239,-159.1115641,0.00023781,2]
[367010073,1750617043250,-177.3077519,0.00023781,2]
[367010074,1750617043260,-574.6497757,0.00023781,2]
[367010075,1750617043270,-574.6497757,0.00023781,2]
[367010076,1750617043279,-159.1115641,0.00023781,2]
[367010077,1750617043289,-153.0,0.00023781,2]
[367010078,1750617043299,-574.6497757,0.00023781,2]
[367010079,1750617043309,-489.480142,0.00023781,2]
[367010080,1750617043318,-619.0,0.00023786,2]
[367010081,1750617043327,-517.71271256,0.00023797,9]
[367010082,1750617043337,-619.0,0.00023814,2]
[367010083,1750617043347,-600.0,0.00023818,2]
[367010084,1750617043356,-500.0,0.0002382,2]
[367010085,1750617043366,-1683.85554188,0.0002384,2]
[367010086,1750617043375,-619.0,0.00023841,2]
[367010087,1750617043384,-619.0,0.00023869,2]
[367010088,1750617043394,-153.0,0.00023871,2]
[367010089,1750617043403,-153.0,0.00023871,2]
[367010090,1750617043414,-153.0,0.00023871,2]
[367010091,1750617043424,-153.0,0.00023871,2]
[367010092,1750617043433,-153.0,0.00023871,2]
[367010093,1750617043444,-153.0,0.00023871,2]
[367010094,1750617043454,-153.0,0.00023871,2]
[367010095,1750617043463,-153.0,0.00023871,2]
[367010096,1750617043473,-1519.56,0.00023886,2]
[367010097,1750617043482,-600.0,0.00023892,2]
[367010098,1750617043492,-619.0,0.00023896,2]
[367010099,1750617043502,-320.00374285,0.000239,2]
[367010100,1750617043511,-30965.06790811,0.000239,2]
[367010101,1750617043521,-600.0,0.00023905,2]
[367010102,1750617043530,-230.14598372,0.00023911,2]
[367010103,1750617043540,-619.0,0.00023923,2]
[367010104,1750617043549,-1000.0,0.00023924,5]
[367010105,1750617043559,-500.0,0.00023939,2]
[367010106,1750617043568,-273.11,0.00023939,2]
[367010107,1750617043578,-257429.4270656,0.0002394,7]
[367010108,1750617043587,-10050.46476,0.0002394,2]
[367010109,1750617043596,-151.0,0.0002394,2]
[367010110,1750617043606,-12551.52821599,0.0002394,7]
[367010111,1750617043616,-524.02598587,0.0002394,7]
[367010112,1750617043626,-846.39664074,0.0002394,7]
[367010113,1750617043636,-213.59462818,0.0002394,7]
[367010114,1750617043646,-425198.68980987,0.0002394,7]
[367010115,1750617043761,-160.48223308,0.0002394,7]
[367010116,1750617043774,-1079.19033853,0.0002394,7]
[367010117,1750617043786,-3865.48684959,0.0002394,7]
[367010118,1750617043795,-3680.0,0.00023942,2]
[367010119,1750617043805,-355.5,0.00023946,6]
[367010120,1750617043814,-619.0,0.00023951,2]
[367010121,1750617043823,-517.71271256,0.00023969,10]
[367010122,1750617043832,-500.0,0.00023973,2]
[367010123,1750617043842,-500.0,0.00023973,2]
[367010124,1750617043851,-500.0,0.00023973,2]
[367010125,1750617043860,-500.0,0.00023973,2]
[367010126,1750617043869,-500.0,0.00023973,2]
[367010127,1750617043878,-500.0,0.00023973,2]
[367010128,1750617043888,-534.29782074,0.00023973,2]
[367010129,1750617043897,-500.0,0.00023973,2]
[367010130,1750617043907,-500.0,0.00023973,2]
[367010131,1750617043916,-500.0,0.00023973,2]
[367010132,1750617043925,-500.0,0.00023973,2]
[367010133,1750617043934,-500.0,0.00023973,2]
[367010134,1750617043944,-500.0,0.00023973,2]
[367010135,1750617043953,-500.0,0.00023973,2]
[367010136,1750617043963,-500.0,0.00023973,2]
[367010137,1750617043973,-500.0,0.00023973,2]
[367010138,1750617043983,-500.0,0.00023973,2]
[367010139,1750617043992,-600.0,0.00023973,2]
[367010140,1750617044003,-500.0,0.00023973,2]
[367010141,1750617044012,-500.0,0.00023973,2]
[367010142,1750617044202,-500.0,0.00023973,2]
[367010143,1750617044212,-500.0,0.00023973,2]
[367010144,1750617044222,-422.95873471,0.00023973,2]
[367010145,1750617044231,-547.01834822,0.00023973,2]
[367010146,1750617044243,-500.0,0.00023973,2]
[367010147,1750617044254,-500.0,0.00023973,2]
[367010148,1750617044265,-500.83542297,0.00023973,2]
[367010149,1750617044275,-150.0,0.00023973,2]
[367010150,1750617044284,-624.0,0.00023978,2]
[367010151,1750617044293,-160.0,0.00024,7]
[367010152,1750617044303,-37720.94965164,0.00024,2]
[367010153,1750617045278,-159.1115641,0.00022959,2]
[367010154,1750617045288,-177.3077519,0.00022959,2]
[367010155,1750617045298,-4418.78569993,0.00024,2]
[367010156,1750617045620,-391.54728608,0.00023422,2]
[367010157,1750617045630,-723.22571471,0.000236,2]
[367010158,1750617046310,-292.90815842,0.000231,2]
[367010159,1750617046996,-155.0,0.000231,2]
[367010160,1750617094141,253.41218454,0.00025,30]
[367010161,1750617145982,155.0,0.00025,30]
[367010162,1750617214689,500.0,0.0002492,30]
[367010163,1750617215480,500.0,0.0002492,30]
[367010164,1750617215844,500.0,0.0002492,30]
[367010165,1750617216402,500.0,0.0002492,30]
[367010166,1750617216532,500.0,0.0002492,30]
[367010167,1750617216797,164.26806508,0.0002492,30]
[367010168,1750617232886,5000.0,0.000201,2]
[367010169,1750617240638,11892.36032471,0.00019903,2]
[367010170,1750617240662,12103.04465589,0.00019903,2]
[367010171,1750617245653,501.4016289,0.00020062,2]
[367010172,1750617248758,1464.03002378,0.000201,2]
[367010173,1750617273551,155.0,0.00025,30]
[367010174,1750617334175,1382.3764742,0.00019877,2]
[367010175,1750617339026,510.915153,0.00019877,2]
[367010177,1750617391083,375.193856,0.00013699,2]
[367010178,1750617416332,1520.0966974,0.00019878,2]
[367010179,1750617530661,152.3768496,0.0002,2]
[367010180,1750617549946,161.431083,0.00019874,2]
[367010181,1750617550417,161.431083,0.00019924,2]
[367010182,1750617550747,161.431083,0.00019973,2]
[367010183,1750617595626,206.8064461,0.00019874,2]
[367010184,1750617659003,500.2696617,0.00019876,2]
[367010185,1750617675467,711.88162978,0.000201,2]
[367010186,1750617684908,228.421561,0.00019879,2]
[367010187,1750617704601,4100.37027664,0.000201,2]
[367010188,1750617710332,436.347956,0.00019885,2]
[367010189,1750617720990,1735.21263175,0.000201,2]
[367010190,1750617766633,5000.0,0.000201,2]
[367010191,1750617799838,586.96124926,0.00019878,2]
[367010192,1750617799864,24313.03875074,0.00019878,2]
[367010194,1750617826582,4900.01958588,0.000201,2]
[367010195,1750617843583,2786.94166338,0.000201,2]
[367010196,1750617843608,2213.05833662,0.000201,2]
[367010197,1750617858600,5000.0,0.000201,2]
[367010198,1750617874500,5000.0,0.000201,2]
[367010199,1750617890015,2513.21705995,0.000201,2]
[367010200,1750617905510,658.39825335,0.000201,2]
[367010291,1750617920807,5000.0,0.000201,2]
[367010764,1750617956948,156.39536787,6.8e-07,2]
[367010786,1750617957477,156.39536787,6.8e-07,2]
[367010790,1750617957569,156.39536787,6.8e-07,2]
[367010793,1750617957610,156.39536787,6.8e-07,2]
[367010795,1750617957655,156.39536787,6.8e-07,2]
[367010798,1750617957704,156.39536787,6.8e-07,2]
[367010802,1750617957773,156.39536787,6.8e-07,2]
[367010805,1750617957852,156.39536787,6.8e-07,2]
[367010812,1750617957983,156.39536787,6.8e-07,2]
[367010818,1750617958144,156.39536787,6.8e-07,2]
[367011320,1750617980518,1479.9624702,0.000189,2]
[367011810,1750618004291,424.25074043,0.00019594,2]
[367012505,1750618027116,-375.193856,0.00020187,2]
[367012507,1750618027135,-5594.06198481,0.000202,2]
[367012509,1750618027155,-214.34142246,0.00020278,2]
[367012510,1750618027176,-1389.74627858,0.000208,2]
[367012512,1750618027195,-506.66702859,0.00020801,2]
[367012514,1750618027216,-300.0,0.00020872,2]
[367012516,1750618027236,-300.0,0.00020872,2]
[367012517,1750618027256,-500.0,0.00020873,2]
[367012519,1750618027275,-500.0,0.00020873,2]
[367012521,1750618027294,-374.32370989,0.00020873,2]
[367012522,1750618027317,-500.0,0.00020873,2]
[367012524,1750618027336,-500.0,0.00020873,2]
[367012526,1750618027355,-500.0,0.00020873,2]
[367012527,1750618027376,-500.0,0.00020873,2]
[367012529,1750618027395,-500.0,0.00020873,2]
[367012531,1750618027415,-500.0,0.00020873,2]
[367012532,1750618027436,-500.0,0.00020873,2]
[367012534,1750618027457,-412.50871105,0.00020873,2]
[367012536,1750618027479,-500.0,0.00020873,2]
[367012538,1750618027503,-500.0,0.00020873,2]
[367012539,1750618027525,-500.40216454,0.00020873,2]
[367012541,1750618027546,-500.0,0.00020873,2]
[367012543,1750618027567,-627.04,0.0002089,3]
[367012544,1750618027588,-156.587,0.0002089,2]
[367012546,1750618027609,-151.0,0.0002089,2]
[367012547,1750618027630,-151.0,0.0002089,2]
[367012549,1750618027652,-151.0,0.0002089,2]
[367012551,1750618027672,-245.961565,0.0002089,2]
[367012552,1750618027693,-152.82905505,0.00020892,2]
[367012554,1750618027713,-1073.90893371,0.00020899,2]
[367012555,1750618027733,-160.0,0.000209,2]
[367012557,1750618027755,-500.0,0.000209,2]
[367012559,1750618027779,-500.0,0.000209,2]
[367012560,1750618027800,-500.0,0.000209,2]
[367012562,1750618027823,-553.25580995,0.000209,2]
[367012564,1750618027845,-500.0,0.000209,2]
[367012565,1750618027866,-500.0,0.000209,2]
[367012567,1750618027887,-500.0,0.000209,2]
[367012569,1750618027907,-500.0,0.000209,2]
[367012570,1750618027928,-500.0,0.000209,2]
[367012572,1750618027948,-500.0,0.000209,2]
[367012574,1750618027968,-407.0697578,0.000209,2]
[367012575,1750618027988,-500.0,0.000209,2]
[367012577,1750618028010,-500.0,0.000209,2]
[367012579,1750618028030,-500.0,0.000209,2]
[367012580,1750618028050,-500.0,0.000209,2]
[367012582,1750618028073,-500.0,0.000209,2]
[367012584,1750618028093,-500.0,0.000209,2]
[367012585,1750618028113,-500.0,0.000209,2]
[367012587,1750618028135,-500.0,0.000209,2]
[367012588,1750618028156,-500.0,0.000209,2]
[367012590,1750618028178,-500.0,0.000209,2]
[367012592,1750618028197,-500.0,0.000209,2]
[367012593,1750618028218,-500.0,0.000209,2]
[367012595,1750618028239,-500.0,0.000209,2]
[367012597,1750618028260,-500.0,0.000209,2]
[367012598,1750618028281,-184.35128681,0.000209,2]
[367012600,1750618028302,-500.0,0.000209,2]
[367012601,1750618028325,-500.0,0.000209,2]
[367012603,1750618028347,-500.0,0.000209,2]
[367012605,1750618028367,-500.0,0.000209,2]
[367012606,1750618028388,-500.0,0.000209,2]
[367012608,1750618028410,-500.0,0.000209,2]
[367012610,1750618028430,-500.0,0.000209,2]
[367012611,1750618028451,-500.0,0.000209,2]
[367012613,1750618028477,-500.0,0.000209,2]
[367012615,1750618028499,-500.0,0.000209,2]
[367012616,1750618028521,-500.0,0.000209,2]
[367012618,1750618028543,-300.0,0.000209,2]
[367012620,1750618028568,-500.0,0.000209,2]
[367012621,1750618028590,-500.0,0.000209,2]
[367012623,1750618028611,-500.0,0.000209,2]
[367012624,1750618028634,-500.0,0.000209,2]
[367012626,1750618028655,-500.0,0.000209,2]
[367012628,1750618028677,-500.0,0.000209,2]
[367012629,1750618028700,-500.0,0.000209,2]
[367012631,1750618028721,-500.0,0.000209,2]
[367012632,1750618028743,-500.0,0.000209,2]
[367012634,1750618028765,-500.0,0.000209,2]
[367012636,1750618028786,-500.0,0.000209,2]
[367012637,1750618028808,-500.0,0.000209,2]
[367012639,1750618028833,-225.94949933,0.000209,2]
[367012640,1750618028853,-500.0,0.000209,2]
[367012642,1750618028876,-500.0,0.000209,2]
[367012644,1750618028899,-500.0,0.000209,2]
[367012645,1750618028920,-300.0,0.000209,2]
[367012647,1750618028941,-300.0,0.000209,2]
[367012649,1750618028962,-292.0,0.000209,2]
[367012650,1750618028983,-300.0,0.000209,2]
[367012652,1750618029004,-1200.0,0.000209,2]
[367012653,1750618029025,-36240.56305811,0.000209,2]
[367012655,1750618029046,-207.55422017,0.00020901,2]
[367012657,1750618029068,-500.0,0.00020902,2]
[367012658,1750618029088,-868.37053882,0.00020906,2]
[367012660,1750618029110,-314.5,0.00020906,2]
[367012661,1750618029131,-296.413,0.00020945,2]
[367012663,1750618029153,-2881.63084391,0.0002095,2]
[367012665,1750618029173,-500.0,0.00020973,2]
[367012666,1750618029193,-472.7396892,0.00020973,2]
[367012668,1750618029213,-500.0,0.00020973,2]
[367012669,1750618029234,-436.29805676,0.00020973,2]
[367012671,1750618029254,-500.0,0.00020973,2]
[367012673,1750618029274,-160.0,0.00021,2]
[367012674,1750618029295,-500.0,0.00021,2]
[367012676,1750618029318,-500.0,0.00021,2]
[367012677,1750618029339,-2242.99,0.00021,2]
[367012679,1750618029359,-500.0,0.00021,2]
[367012681,1750618029380,-500.0,0.00021,2]
[367012682,1750618029401,-500.0,0.00021,2]
[367012684,1750618029422,-500.0,0.00021,2]
[367012685,1750618029444,-245.6,0.00021166,3]
[367012687,1750618029471,-500.0,0.00021176,2]
[367012689,1750618029492,-506.66702858,0.00021385,2]
[367012690,1750618029515,-446.35625141,0.00021421,2]
[367012692,1750618029536,-1000.0,0.00021421,2]
[367012693,1750618029558,-1000.0,0.00021421,2]
[367012695,1750618029579,-1000.0,0.00021421,2]
[367012696,1750618029600,-1000.0,0.00021421,2]
[367012697,1750618029622,-1000.0,0.00021421,2]
[367012698,1750618029643,-267.32837613,0.0002145,2]
[367012699,1750618029665,-1000.0,0.00021521,2]
[367012700,1750618029687,-1000.0,0.00021521,2]
[367012701,1750618029710,-1000.0,0.00021521,2]
[367012702,1750618029730,-982.38,0.00021528,3]
[367012703,1750618029752,-491.19,0.00021528,3]
[367012704,1750618029774,-1964.77,0.00021538,3]
[367012705,1750618029795,-500.0,0.00021547,2]
[367012706,1750618029821,-213.22979827,0.00021547,2]
[367012707,1750618029842,-500.0,0.00021547,2]
[367012708,1750618029863,-1000.0,0.00021548,2]
[367012709,1750618029883,-1000.0,0.00021548,2]
[367012710,1750618029905,-1000.0,0.00021548,2]
[367012711,1750618029925,-553.13788572,0.00021548,2]
[367012712,1750618029946,-1000.0,0.00021548,2]
[367012713,1750618029966,-500.0,0.0002155,2]
[367012714,1750618029992,-274.46176685,0.0002155,2]
[367012721,1750618030201,-511.28541419,0.0002155,2]
[367012722,1750618030222,-500.0,0.0002155,2]
[367012724,1750618030244,-1389.74627857,0.00021577,2]
[367012726,1750618030264,-489.082,0.00021594,2]
[367012727,1750618030285,-736.81,0.00021718,3]
[367012729,1750618030307,-807.95,0.0002184,3]
[367012731,1750618030328,-990.599,0.00021858,2]
[367012732,1750618030349,-484.1558802,0.00021879,2]
[367012734,1750618030375,-2708.10418148,0.000219,6]
[367012736,1750618030398,-500.0,0.00021917,2]
[367012738,1750618030418,-166.0,0.00021918,2]
[367012739,1750618030438,-704.45037723,0.00021918,7]
[367012741,1750618030462,-506.66702858,0.00021968,2]
[367012742,1750618030483,-1500.0,0.00021968,2]
[367012744,1750618030506,-1500.0,0.00021968,2]
[367012746,1750618030526,-1500.0,0.00021968,2]
[367012747,1750618030548,-1500.0,0.00021968,2]
[367012749,1750618030569,-1500.0,0.00021968,2]
[367012751,1750618030590,-306.0,0.00021979,2]
[367012752,1750618030611,-1552.4268763,0.00022068,2]
[367012754,1750618030631,-502.47267799,0.00022068,2]
[367012756,1750618030652,-1500.0,0.00022068,2]
[367012757,1750618030680,-2708.10418126,0.00022072,6]
[367012759,1750618030702,-1500.0,0.00022096,2]
[367012761,1750618030724,-1500.0,0.00022096,2]
[367012762,1750618030746,-1500.0,0.00022096,2]
[367012764,1750618030769,-1500.0,0.00022096,2]
[367012765,1750618030791,-1000.0,0.00022098,2]
[367012767,1750618030811,-1000.0,0.00022098,2]
[367012769,1750618030833,-402.37975722,0.00022152,2]
[367012770,1750618030854,-313.52,0.00022161,3]
[367012772,1750618030875,-500.0,0.00022171,2]
[367012774,1750618030895,-500.0,0.00022171,2]
[367012775,1750618030916,-500.0,0.00022171,2]
[367012777,1750618030936,-500.0,0.00022171,2]
[367012778,1750618030957,-2242.99,0.000222,7]
[367012780,1750618030979,-208.59738312,0.00022242,2]
[367012845,1750618033176,-200.0,0.00022593,10]
[367012847,1750618033201,-200.0,0.00022593,10]
[367012849,1750618033228,-200.0,0.00022593,10]
[367012851,1750618033254,-200.0,0.00022593,10]
[367012853,1750618033278,-200.0,0.00022593,10]
[367012855,1750618033303,-200.0,0.00022593,10]
[367012856,1750618033328,-200.0,0.00022593,10]
[367012858,1750618033353,-200.0,0.00022593,10]
[367012860,1750618033378,-200.0,0.00022593,10]
[367012862,1750618033403,-200.0,0.00022593,10]
[367012864,1750618033427,-200.0,0.00022593,10]
[367012865,1750618033451,-200.0,0.00022593,10]
[367012867,1750618033480,-200.0,0.00022593,10]
[367012869,1750618033507,-200.0,0.00022593,10]
[367012871,1750618033535,-200.0,0.00022593,10]
[367012873,1750618033569,-200.0,0.00022593,10]
[367012875,1750618033594,-200.0,0.00022593,10]
[367012876,1750618033618,-200.0,0.00022593,10]
[367012878,1750618033645,-200.0,0.00022593,10]
[367012880,1750618033672,-200.0,0.00022593,10]
[367012882,1750618033699,-200.0,0.00022593,10]
[367012884,1750618033725,-223.899499,0.00022593,10]
[367012893,1750618033978,-2708.10418126,0.00023969,10]
[367012896,1750618034014,-2708.10418126,0.00024141,10]
[367012897,1750618034040,-500.0,0.00024221,10]
[367012900,1750618034073,-2708.10418126,0.00024314,10]
[367012901,1750618034099,-836.56272071,0.000244,10]
[367012903,1750618034124,-160.0,0.000244,10]
[367012905,1750618034148,-425.01221603,0.000244,10]
[367012907,1750618034173,-524.02598587,0.000244,10]
[367012909,1750618034197,-846.39664074,0.000244,10]
[367012910,1750618034221,-213.59462818,0.000244,10]
[367012912,1750618034246,-230.14598372,0.000244,10]
[367012914,1750618034271,-160.0,0.000244,10]
[367012916,1750618034296,-200.0,0.0002446,10]
[367012918,1750618034328,-2708.10418126,0.00024486,11]
[367012920,1750618034355,-200.0,0.00024658,15]
[367012922,1750618034387,-2708.10418126,0.00024659,11]
[367012924,1750618034412,-151.0,0.000247,10]
[367012925,1750618034440,-500.0,0.00024769,11]
[367012927,1750618034477,-2708.10418126,0.00024831,12]
[367012930,1750618034516,-160.0,0.00025,10]
[367012932,1750618034550,-213.59462818,0.00025,10]
[367012934,1750618034583,-2708.10418126,0.00025003,12]
[367012936,1750618034617,-2708.10418126,0.00025176,12]
[367012938,1750618034644,-500.0,0.00025205,30]
[367012940,1750618034669,-500.0,0.00025317,12]
[367012941,1750618034694,-10258.6896239,0.0002533,30]
[367012943,1750618034726,-2708.10418126,0.00025348,13]
[367012946,1750618034763,-2708.10418126,0.00025521,13]
[367012948,1750618034799,-2708.10418126,0.00025693,13]
[367012949,1750618034825,-500.0,0.00025753,30]
[367012951,1750618034852,-200.0,0.00025803,120]
[367012953,1750618034881,-500.0,0.00025865,13]
[367012955,1750618034917,-2708.10418126,0.00025866,14]
[367012957,1750618034945,-200.0,0.00025984,120]
[367012959,1750618034972,-1000.0,0.00026,26]
[367012961,1750618034998,-2000.0,0.00026,120]
[367012963,1750618035023,-160.0,0.00026,30]
[367012965,1750618035048,-160.0,0.00026,30]
[367012966,1750618035075,-209022.50695242,0.00026,30]
[367012968,1750618035102,-836.56272071,0.00026,30]
[367012970,1750618035127,-160.0,0.00026,30]
[367012972,1750618035151,-425.01221603,0.00026,30]
[367012974,1750618035175,-524.02598587,0.00026,30]
[367012976,1750618035201,-846.39664074,0.00026,30]
[367012978,1750618035225,-213.59462818,0.00026,30]
[367012979,1750618035251,-230.14598372,0.00026,30]
[367012981,1750618035278,-160.0,0.00026,30]
[367012983,1750618035309,-2708.10418126,0.00026038,14]
[367012985,1750618035335,-1333.0,0.00026137,120]
[367012987,1750618035360,-200.0,0.0002618,15]
[367012989,1750618035394,-2708.10418126,0.0002621,14]
[367012991,1750618035424,-200.0,0.00026227,120]
[367012994,1750618035474,-1500.0,0.0002627,28]